Body Name,Body,Service division categorisation,Expense Type,Date paid,Transaction Reference,Net,Supplier Name,Redacted/Excluded
East Lindsey District Council,http://statistics.data.gov.uk/id/local-authority/32UC,Waste Services Manager,Tyres,07/03/13,IJ00019500,577.68,B A BUSH & SON LIMITED, 
East Lindsey District Council,http://statistics.data.gov.uk/id/local-authority/32UC,Embassy Pool Manager,Other Private Contractors,07/03/13,IJ00019416,6012.42,COMPETITION LINE (UK) LTD, 
East Lindsey District Council,http://statistics.data.gov.uk/id/local-authority/32UC,TL Property,Buildings Maintenance - Programmed,07/03/13,IJ00019572,8645.70,SID DENNIS & SONS LTD, 
East Lindsey District Council,http://statistics.data.gov.uk/id/local-authority/32UC,Corporate Accounting,Professional & Contractors Fees,07/03/13,IJ00019656,632.33,NORTH KESTEVEN DISTRICT COUNCIL, 
East Lindsey District Council,http://statistics.data.gov.uk/id/local-authority/32UC,Capital WIP,Grants and Contributions to Outside Bodies- No Service Recei,07/03/13,IJ00019609,7291.73,SIBJON BUILDERS, 
East Lindsey District Council,http://statistics.data.gov.uk/id/local-authority/32UC,Hsg Private Sector TL,Other Income,07/03/13,IJ00019609,-651.05,SIBJON BUILDERS, 
East Lindsey District Council,http://statistics.data.gov.uk/id/local-authority/32UC,Meridian Facility Manager,Materials and Consumables,07/03/13,IJ00019434,580.95,STOWLIN LTD, 
East Lindsey District Council,http://statistics.data.gov.uk/id/local-authority/32UC,Embassy Pool Manager,Materials and Consumables,07/03/13,IJ00019434,673.63,STOWLIN LTD, 
East Lindsey District Council,http://statistics.data.gov.uk/id/local-authority/32UC,Capital WIP,Grants and Contributions to Outside Bodies- No Service Recei,07/03/13,IJ00019593,5323.25,COTTS BUILDERS AND CONTRACTORS, 
East Lindsey District Council,http://statistics.data.gov.uk/id/local-authority/32UC,Hsg Private Sector TL,Other Income,07/03/13,IJ00019593,-475.29,COTTS BUILDERS AND CONTRACTORS, 
East Lindsey District Council,http://statistics.data.gov.uk/id/local-authority/32UC,Enforcement Team Leader,Telephones,07/03/13,IJ00019507,81.60,VODAFONE CORPORATE LIMITED, 
East Lindsey District Council,http://statistics.data.gov.uk/id/local-authority/32UC,Corporate Accounting,Telephones,07/03/13,IJ00019507,118.19,VODAFONE CORPORATE LIMITED, 
East Lindsey District Council,http://statistics.data.gov.uk/id/local-authority/32UC,Communications Manager,Telephones,07/03/13,IJ00019507,35.14,VODAFONE CORPORATE LIMITED, 
East Lindsey District Council,http://statistics.data.gov.uk/id/local-authority/32UC,TL Partnerships & Grants,Telephones,07/03/13,IJ00019507,11.12,VODAFONE CORPORATE LIMITED, 
East Lindsey District Council,http://statistics.data.gov.uk/id/local-authority/32UC,Housing Support TL,Telephones,07/03/13,IJ00019507,238.93,VODAFONE CORPORATE LIMITED, 
East Lindsey District Council,http://statistics.data.gov.uk/id/local-authority/32UC,Sports Development,Telephones,07/03/13,IJ00019507,83.04,VODAFONE CORPORATE LIMITED, 
East Lindsey District Council,http://statistics.data.gov.uk/id/local-authority/32UC,Service Development Manager,Telephones,07/03/13,IJ00019507,235.57,VODAFONE CORPORATE LIMITED, 
East Lindsey District Council,http://statistics.data.gov.uk/id/local-authority/32UC,Building Control Partnership,Telephones,07/03/13,IJ00019507,280.79,VODAFONE CORPORATE LIMITED, 
East Lindsey District Council,http://statistics.data.gov.uk/id/local-authority/32UC,Building Control,Telephones,07/03/13,IJ00019507,3.60,VODAFONE CORPORATE LIMITED, 
East Lindsey District Council,http://statistics.data.gov.uk/id/local-authority/32UC,Building Control,Telephones,07/03/13,IJ00019507,15.50,VODAFONE CORPORATE LIMITED, 
East Lindsey District Council,http://statistics.data.gov.uk/id/local-authority/32UC,Business Development Manager,Telephones,07/03/13,IJ00019507,12.70,VODAFONE CORPORATE LIMITED, 
East Lindsey District Council,http://statistics.data.gov.uk/id/local-authority/32UC,Business Development Manager,Telephones,07/03/13,IJ00019507,2.40,VODAFONE CORPORATE LIMITED, 
East Lindsey District Council,http://statistics.data.gov.uk/id/local-authority/32UC,Business Innovation Manager,Telephones,07/03/13,IJ00019507,1.80,VODAFONE CORPORATE LIMITED, 
East Lindsey District Council,http://statistics.data.gov.uk/id/local-authority/32UC,Cultural & Related Services,Telephones,07/03/13,IJ00019507,13.79,VODAFONE CORPORATE LIMITED, 
East Lindsey District Council,http://statistics.data.gov.uk/id/local-authority/32UC,Cultural & Related Services,Telephones,07/03/13,IJ00019507,19.33,VODAFONE CORPORATE LIMITED, 
East Lindsey District Council,http://statistics.data.gov.uk/id/local-authority/32UC,Commercial Team Leader,Telephones,07/03/13,IJ00019507,105.86,VODAFONE CORPORATE LIMITED, 
East Lindsey District Council,http://statistics.data.gov.uk/id/local-authority/32UC,Chief Executive,Telephones,07/03/13,IJ00019507,16.62,VODAFONE CORPORATE LIMITED, 
East Lindsey District Council,http://statistics.data.gov.uk/id/local-authority/32UC,Chief Executive,Telephones,07/03/13,IJ00019507,8.80,VODAFONE CORPORATE LIMITED, 
East Lindsey District Council,http://statistics.data.gov.uk/id/local-authority/32UC,Chief Executive,Telephones,07/03/13,IJ00019507,2.77,VODAFONE CORPORATE LIMITED, 
East Lindsey District Council,http://statistics.data.gov.uk/id/local-authority/32UC,Democracy Manager,Telephones,07/03/13,IJ00019507,44.28,VODAFONE CORPORATE LIMITED, 
East Lindsey District Council,http://statistics.data.gov.uk/id/local-authority/32UC,Development Control,Telephones,07/03/13,IJ00019507,12.60,VODAFONE CORPORATE LIMITED, 
East Lindsey District Council,http://statistics.data.gov.uk/id/local-authority/32UC,Enforcement Team Leader,Telephones,07/03/13,IJ00019507,19.51,VODAFONE CORPORATE LIMITED, 
East Lindsey District Council,http://statistics.data.gov.uk/id/local-authority/32UC,Enforcement Team Leader,Telephones,07/03/13,IJ00019507,27.00,VODAFONE CORPORATE LIMITED, 
East Lindsey District Council,http://statistics.data.gov.uk/id/local-authority/32UC,Enforcement Team Leader,Telephones,07/03/13,IJ00019507,32.33,VODAFONE CORPORATE LIMITED, 
East Lindsey District Council,http://statistics.data.gov.uk/id/local-authority/32UC,Enforcement Team Leader,Telephones,07/03/13,IJ00019507,469.80,VODAFONE CORPORATE LIMITED, 
East Lindsey District Council,http://statistics.data.gov.uk/id/local-authority/32UC,Environment Team Leader,Telephones,07/03/13,IJ00019507,125.78,VODAFONE CORPORATE LIMITED, 
East Lindsey District Council,http://statistics.data.gov.uk/id/local-authority/32UC,Service Development Managers,Telephones,07/03/13,IJ00019507,10.82,VODAFONE CORPORATE LIMITED, 
East Lindsey District Council,http://statistics.data.gov.uk/id/local-authority/32UC,Theatre Manager,Telephones,07/03/13,IJ00019507,28.50,VODAFONE CORPORATE LIMITED, 
East Lindsey District Council,http://statistics.data.gov.uk/id/local-authority/32UC,Health Team Leader,Telephones,07/03/13,IJ00019507,33.82,VODAFONE CORPORATE LIMITED, 
East Lindsey District Council,http://statistics.data.gov.uk/id/local-authority/32UC,Health Team Leader,Telephones,07/03/13,IJ00019507,8.38,VODAFONE CORPORATE LIMITED, 
East Lindsey District Council,http://statistics.data.gov.uk/id/local-authority/32UC,Health Team Leader,Telephones,07/03/13,IJ00019507,38.81,VODAFONE CORPORATE LIMITED, 
East Lindsey District Council,http://statistics.data.gov.uk/id/local-authority/32UC,Health Team Leader,Telephones,07/03/13,IJ00019507,2.80,VODAFONE CORPORATE LIMITED, 
East Lindsey District Council,http://statistics.data.gov.uk/id/local-authority/32UC,Hsg Advice & Homelessness TL,Telephones,07/03/13,IJ00019507,8.11,VODAFONE CORPORATE LIMITED, 
East Lindsey District Council,http://statistics.data.gov.uk/id/local-authority/32UC,Hsg Advice & Homelessness TL,Telephones,07/03/13,IJ00019507,51.01,VODAFONE CORPORATE LIMITED, 
East Lindsey District Council,http://statistics.data.gov.uk/id/local-authority/32UC,Hsg Private Sector TL,Telephones,07/03/13,IJ00019507,25.87,VODAFONE CORPORATE LIMITED, 
East Lindsey District Council,http://statistics.data.gov.uk/id/local-authority/32UC,Hsg Private Sector TL,Telephones,07/03/13,IJ00019507,5.48,VODAFONE CORPORATE LIMITED, 
East Lindsey District Council,http://statistics.data.gov.uk/id/local-authority/32UC,Hsg Private Sector TL,Telephones,07/03/13,IJ00019507,36.58,VODAFONE CORPORATE LIMITED, 
East Lindsey District Council,http://statistics.data.gov.uk/id/local-authority/32UC,Hsg Private Sector TL,Telephones,07/03/13,IJ00019507,1.80,VODAFONE CORPORATE LIMITED, 
East Lindsey District Council,http://statistics.data.gov.uk/id/local-authority/32UC,Hsg Private Sector TL,Telephones,07/03/13,IJ00019507,18.91,VODAFONE CORPORATE LIMITED, 
East Lindsey District Council,http://statistics.data.gov.uk/id/local-authority/32UC,Housing Support TL,Telephones,07/03/13,IJ00019507,375.35,VODAFONE CORPORATE LIMITED, 
East Lindsey District Council,http://statistics.data.gov.uk/id/local-authority/32UC,Housing Support TL,Telephones,07/03/13,IJ00019507,1.80,VODAFONE CORPORATE LIMITED, 
East Lindsey District Council,http://statistics.data.gov.uk/id/local-authority/32UC,Housing Support TL,Telephones,07/03/13,IJ00019507,10.80,VODAFONE CORPORATE LIMITED, 
East Lindsey District Council,http://statistics.data.gov.uk/id/local-authority/32UC,Meridian Facility Manager,Telephones,07/03/13,IJ00019507,2.12,VODAFONE CORPORATE LIMITED, 
East Lindsey District Council,http://statistics.data.gov.uk/id/local-authority/32UC,Meridian Facility Manager,Telephones,07/03/13,IJ00019507,23.04,VODAFONE CORPORATE LIMITED, 
East Lindsey District Council,http://statistics.data.gov.uk/id/local-authority/32UC,Planning & Housing Policy Manager,Telephones,07/03/13,IJ00019507,10.80,VODAFONE CORPORATE LIMITED, 
East Lindsey District Council,http://statistics.data.gov.uk/id/local-authority/32UC,Planning & Housing Policy Manager,Telephones,07/03/13,IJ00019507,11.68,VODAFONE CORPORATE LIMITED, 
East Lindsey District Council,http://statistics.data.gov.uk/id/local-authority/32UC,Policy & Project Manager,Telephones,07/03/13,IJ00019507,25.62,VODAFONE CORPORATE LIMITED, 
East Lindsey District Council,http://statistics.data.gov.uk/id/local-authority/32UC,Policy & Project Manager,Telephones,07/03/13,IJ00019507,61.79,VODAFONE CORPORATE LIMITED, 
East Lindsey District Council,http://statistics.data.gov.uk/id/local-authority/32UC,TL Property,Telephones,07/03/13,IJ00019507,23.94,VODAFONE CORPORATE LIMITED, 
East Lindsey District Council,http://statistics.data.gov.uk/id/local-authority/32UC,Service Development Managers,Telephones,07/03/13,IJ00019507,15.13,VODAFONE CORPORATE LIMITED, 
East Lindsey District Council,http://statistics.data.gov.uk/id/local-authority/32UC,Service Development Managers,Telephones,07/03/13,IJ00019507,11.03,VODAFONE CORPORATE LIMITED, 
East Lindsey District Council,http://statistics.data.gov.uk/id/local-authority/32UC,Strategic Director (SD),Telephones,07/03/13,IJ00019507,12.76,VODAFONE CORPORATE LIMITED, 
East Lindsey District Council,http://statistics.data.gov.uk/id/local-authority/32UC,Sports Centre Manager,Telephones,07/03/13,IJ00019507,23.21,VODAFONE CORPORATE LIMITED, 
East Lindsey District Council,http://statistics.data.gov.uk/id/local-authority/32UC,Sports Development,Telephones,07/03/13,IJ00019507,27.29,VODAFONE CORPORATE LIMITED, 
East Lindsey District Council,http://statistics.data.gov.uk/id/local-authority/32UC,Sports Development,Telephones,07/03/13,IJ00019507,1.80,VODAFONE CORPORATE LIMITED, 
East Lindsey District Council,http://statistics.data.gov.uk/id/local-authority/32UC,BM Sports Facilities,Telephones,07/03/13,IJ00019507,8.00,VODAFONE CORPORATE LIMITED, 
East Lindsey District Council,http://statistics.data.gov.uk/id/local-authority/32UC,Waste Services Manager,Telephones,07/03/13,IJ00019507,44.84,VODAFONE CORPORATE LIMITED, 
East Lindsey District Council,http://statistics.data.gov.uk/id/local-authority/32UC,Technical Services Team Leader,Telephones,07/03/13,IJ00019507,5.38,VODAFONE CORPORATE LIMITED, 
East Lindsey District Council,http://statistics.data.gov.uk/id/local-authority/32UC,Technical Services Team Leader,Telephones,07/03/13,IJ00019507,39.97,VODAFONE CORPORATE LIMITED, 
East Lindsey District Council,http://statistics.data.gov.uk/id/local-authority/32UC,Technical Services Team Leader,Telephones,07/03/13,IJ00019507,4.78,VODAFONE CORPORATE LIMITED, 
East Lindsey District Council,http://statistics.data.gov.uk/id/local-authority/32UC,Theatre Manager,Telephones,07/03/13,IJ00019507,1.50,VODAFONE CORPORATE LIMITED, 
East Lindsey District Council,http://statistics.data.gov.uk/id/local-authority/32UC,Theatre Manager,Telephones,07/03/13,IJ00019507,12.26,VODAFONE CORPORATE LIMITED, 
East Lindsey District Council,http://statistics.data.gov.uk/id/local-authority/32UC,Waste Services Manager,Telephones,07/03/13,IJ00019507,97.10,VODAFONE CORPORATE LIMITED, 
East Lindsey District Council,http://statistics.data.gov.uk/id/local-authority/32UC,Area Working,Telephones,07/03/13,IJ00019507,29.83,VODAFONE CORPORATE LIMITED, 
East Lindsey District Council,http://statistics.data.gov.uk/id/local-authority/32UC,Improvement & Development Mngr,Telephones,07/03/13,IJ00019507,94.40,VODAFONE CORPORATE LIMITED, 
East Lindsey District Council,http://statistics.data.gov.uk/id/local-authority/32UC,Sports Development,Telephones,07/03/13,IJ00019507,5.66,VODAFONE CORPORATE LIMITED, 
East Lindsey District Council,http://statistics.data.gov.uk/id/local-authority/32UC,Cultural & Related Services,Telephones,07/03/13,IJ00019507,17.59,VODAFONE CORPORATE LIMITED, 
East Lindsey District Council,http://statistics.data.gov.uk/id/local-authority/32UC,Area Working,Telephones,07/03/13,IJ00019507,4.91,VODAFONE CORPORATE LIMITED, 
East Lindsey District Council,http://statistics.data.gov.uk/id/local-authority/32UC,TL Property,Buildings Maintenance - Responsive,07/03/13,IJ00019557,372.86,KENMOR BUILDING & CONSTRUCTION SERVICES, 
East Lindsey District Council,http://statistics.data.gov.uk/id/local-authority/32UC,TL Property,Buildings Maintenance - Programmed,07/03/13,IJ00019557,1540.00,KENMOR BUILDING & CONSTRUCTION SERVICES, 
East Lindsey District Council,http://statistics.data.gov.uk/id/local-authority/32UC,Policy & Project Manager,Postages,07/03/13,IJ00019677,750.00,ROYAL MAIL, 
East Lindsey District Council,http://statistics.data.gov.uk/id/local-authority/32UC,TL Property,Recharges to/from support services,07/03/13,IJ00019567,862.16,LINKAGE COMMUNITY TRUST, 
East Lindsey District Council,http://statistics.data.gov.uk/id/local-authority/32UC,Embassy Pool Manager,Other Miscellaneous Expenses,07/03/13,IJ00019478,573.81,VENDING ENTERPRISES, 
East Lindsey District Council,http://statistics.data.gov.uk/id/local-authority/32UC,TL Property,Buildings Maintenance - Responsive,07/03/13,IJ00019614,517.31,SEYMOUR & CASTLE LTD, 
East Lindsey District Council,http://statistics.data.gov.uk/id/local-authority/32UC,Waste Services Manager,Fuel & Oil,07/03/13,IJ00019496,8260.94,WATSON PETROLEUM LTD, 
East Lindsey District Council,http://statistics.data.gov.uk/id/local-authority/32UC,Waste Services Manager,Fuel & Oil,07/03/13,IJ00019497,21156.10,WATSON PETROLEUM LTD, 
East Lindsey District Council,http://statistics.data.gov.uk/id/local-authority/32UC,Development Control,Staff Training Expenses,07/03/13,IJ00019513,1250.00,RTPI, 
East Lindsey District Council,http://statistics.data.gov.uk/id/local-authority/32UC,Sports Centre Manager,Telephones,14/03/13,IJ00019888,4.68,BT PLC, 
East Lindsey District Council,http://statistics.data.gov.uk/id/local-authority/32UC,Customer Services Manager,Telephones,14/03/13,IJ00019888,128.07,BT PLC, 
East Lindsey District Council,http://statistics.data.gov.uk/id/local-authority/32UC,Policy & Project Manager,Telephones,14/03/13,IJ00019888,75.82,BT PLC, 
East Lindsey District Council,http://statistics.data.gov.uk/id/local-authority/32UC,Policy & Project Manager,Telephones,14/03/13,IJ00019888,151.33,BT PLC, 
East Lindsey District Council,http://statistics.data.gov.uk/id/local-authority/32UC,Theatre Manager,Telephones,14/03/13,IJ00019888,168.89,BT PLC, 
East Lindsey District Council,http://statistics.data.gov.uk/id/local-authority/32UC,Horncastle Pool Manager,Telephones,14/03/13,IJ00019888,8.83,BT PLC, 
East Lindsey District Council,http://statistics.data.gov.uk/id/local-authority/32UC,Corporate Accounting,Telephones,14/03/13,IJ00019888,8237.76,BT PLC, 
East Lindsey District Council,http://statistics.data.gov.uk/id/local-authority/32UC,Corporate Accounting,Telephones,14/03/13,IJ00019888,4009.46,BT PLC, 
East Lindsey District Council,http://statistics.data.gov.uk/id/local-authority/32UC,Corporate Accounting,Telephones,14/03/13,IJ00019888,730.51,BT PLC, 
East Lindsey District Council,http://statistics.data.gov.uk/id/local-authority/32UC,Horncastle Pool Manager,Other agencies,14/03/13,IJ00019705,5990.60,COMPETITION LINE (UK) LTD, 
East Lindsey District Council,http://statistics.data.gov.uk/id/local-authority/32UC,Policy & Project Manager,Buildings Maintenance - Responsive,14/03/13,IJ00019813,76.66,HARLITE INSTALLATIONS LTD, 
East Lindsey District Council,http://statistics.data.gov.uk/id/local-authority/32UC,Technical Services Team Leader,Buildings Maintenance - Responsive,14/03/13,IJ00019813,3303.83,HARLITE INSTALLATIONS LTD, 
East Lindsey District Council,http://statistics.data.gov.uk/id/local-authority/32UC,Service Development Manager,Buildings Maintenance - Responsive,14/03/13,IJ00019813,72.08,HARLITE INSTALLATIONS LTD, 
East Lindsey District Council,http://statistics.data.gov.uk/id/local-authority/32UC,Service Development Manager,Buildings Maintenance - Responsive,14/03/13,IJ00019813,234.26,HARLITE INSTALLATIONS LTD, 
East Lindsey District Council,http://statistics.data.gov.uk/id/local-authority/32UC,Service Development Manager,Buildings Maintenance - Responsive,14/03/13,IJ00019813,456.78,HARLITE INSTALLATIONS LTD, 
East Lindsey District Council,http://statistics.data.gov.uk/id/local-authority/32UC,Enforcement Team Leader,Buildings Maintenance - Responsive,14/03/13,IJ00019813,309.23,HARLITE INSTALLATIONS LTD, 
East Lindsey District Council,http://statistics.data.gov.uk/id/local-authority/32UC,Service Development Manager,Buildings Maintenance - Responsive,14/03/13,IJ00019813,72.08,HARLITE INSTALLATIONS LTD, 
East Lindsey District Council,http://statistics.data.gov.uk/id/local-authority/32UC,TL Property,Buildings Maintenance - Responsive,14/03/13,IJ00019813,654.60,HARLITE INSTALLATIONS LTD, 
East Lindsey District Council,http://statistics.data.gov.uk/id/local-authority/32UC,Enforcement Team Leader,Buildings Maintenance - Responsive,14/03/13,IJ00019813,43.36,HARLITE INSTALLATIONS LTD, 
East Lindsey District Council,http://statistics.data.gov.uk/id/local-authority/32UC,Enforcement Team Leader,Buildings Maintenance - Responsive,14/03/13,IJ00019813,309.23,HARLITE INSTALLATIONS LTD, 
East Lindsey District Council,http://statistics.data.gov.uk/id/local-authority/32UC,Service Development Manager,Buildings Maintenance - Responsive,14/03/13,IJ00019813,19.06,HARLITE INSTALLATIONS LTD, 
East Lindsey District Council,http://statistics.data.gov.uk/id/local-authority/32UC,Cultural & Related Services,Grants and Contributions to Outside Bodies- No Service Recei,14/03/13,IJ00019894,4896.00,NOTTINGHAMSHIRE COUNTY COUNCIL, 
East Lindsey District Council,http://statistics.data.gov.uk/id/local-authority/32UC,Enforcement Team Leader,Postages,14/03/13,IJ00019773,87.19,ROYAL MAIL, 
East Lindsey District Council,http://statistics.data.gov.uk/id/local-authority/32UC,Corporate Accounting,Postages,14/03/13,IJ00019773,494.69,ROYAL MAIL, 
East Lindsey District Council,http://statistics.data.gov.uk/id/local-authority/32UC,Corporate Accounting,Postages,14/03/13,IJ00019773,286.12,ROYAL MAIL, 
East Lindsey District Council,http://statistics.data.gov.uk/id/local-authority/32UC,Corporate Accounting,Postages,14/03/13,IJ00019773,792.58,ROYAL MAIL, 
East Lindsey District Council,http://statistics.data.gov.uk/id/local-authority/32UC,Corporate Accounting,Postages,14/03/13,IJ00019773,460.48,ROYAL MAIL, 
East Lindsey District Council,http://statistics.data.gov.uk/id/local-authority/32UC,Corporate Accounting,Postages,14/03/13,IJ00019773,90.19,ROYAL MAIL, 
East Lindsey District Council,http://statistics.data.gov.uk/id/local-authority/32UC,Corporate Accounting,Postages,14/03/13,IJ00019773,14.79,ROYAL MAIL, 
East Lindsey District Council,http://statistics.data.gov.uk/id/local-authority/32UC,Corporate Accounting,Postages,14/03/13,IJ00019773,322.08,ROYAL MAIL, 
East Lindsey District Council,http://statistics.data.gov.uk/id/local-authority/32UC,Debt Recovery TL,Postages,14/03/13,IJ00019774,18.93,ROYAL MAIL, 
East Lindsey District Council,http://statistics.data.gov.uk/id/local-authority/32UC,Enforcement Team Leader,Postages,14/03/13,IJ00019774,28.21,ROYAL MAIL, 
East Lindsey District Council,http://statistics.data.gov.uk/id/local-authority/32UC,Hsg Private Sector TL,Postages,14/03/13,IJ00019774,2629.55,ROYAL MAIL, 
East Lindsey District Council,http://statistics.data.gov.uk/id/local-authority/32UC,Corporate Accounting,Postages,14/03/13,IJ00019774,511.23,ROYAL MAIL, 
East Lindsey District Council,http://statistics.data.gov.uk/id/local-authority/32UC,Corporate Accounting,Postages,14/03/13,IJ00019774,251.13,ROYAL MAIL, 
East Lindsey District Council,http://statistics.data.gov.uk/id/local-authority/32UC,Corporate Accounting,Postages,14/03/13,IJ00019774,501.62,ROYAL MAIL, 
East Lindsey District Council,http://statistics.data.gov.uk/id/local-authority/32UC,Corporate Accounting,Postages,14/03/13,IJ00019774,299.98,ROYAL MAIL, 
East Lindsey District Council,http://statistics.data.gov.uk/id/local-authority/32UC,Corporate Accounting,Postages,14/03/13,IJ00019774,22.90,ROYAL MAIL, 
East Lindsey District Council,http://statistics.data.gov.uk/id/local-authority/32UC,Corporate Accounting,Postages,14/03/13,IJ00019774,8.26,ROYAL MAIL, 
East Lindsey District Council,http://statistics.data.gov.uk/id/local-authority/32UC,Corporate Accounting,Postages,14/03/13,IJ00019774,88.87,ROYAL MAIL, 
East Lindsey District Council,http://statistics.data.gov.uk/id/local-authority/32UC,Debt Recovery TL,Postages,14/03/13,IJ00019775,18.27,ROYAL MAIL, 
East Lindsey District Council,http://statistics.data.gov.uk/id/local-authority/32UC,Hsg Private Sector TL,Postages,14/03/13,IJ00019775,2094.06,ROYAL MAIL, 
East Lindsey District Council,http://statistics.data.gov.uk/id/local-authority/32UC,Corporate Accounting,Postages,14/03/13,IJ00019775,605.26,ROYAL MAIL, 
East Lindsey District Council,http://statistics.data.gov.uk/id/local-authority/32UC,Corporate Accounting,Postages,14/03/13,IJ00019775,254.10,ROYAL MAIL, 
East Lindsey District Council,http://statistics.data.gov.uk/id/local-authority/32UC,Corporate Accounting,Postages,14/03/13,IJ00019775,2283.73,ROYAL MAIL, 
East Lindsey District Council,http://statistics.data.gov.uk/id/local-authority/32UC,Corporate Accounting,Postages,14/03/13,IJ00019775,1436.13,ROYAL MAIL, 
East Lindsey District Council,http://statistics.data.gov.uk/id/local-authority/32UC,Corporate Accounting,Postages,14/03/13,IJ00019775,84.77,ROYAL MAIL, 
East Lindsey District Council,http://statistics.data.gov.uk/id/local-authority/32UC,Corporate Accounting,Postages,14/03/13,IJ00019775,53.58,ROYAL MAIL, 
East Lindsey District Council,http://statistics.data.gov.uk/id/local-authority/32UC,Debt Recovery TL,Postages,14/03/13,IJ00019777,9.28,ROYAL MAIL, 
East Lindsey District Council,http://statistics.data.gov.uk/id/local-authority/32UC,Development Control,Postages,14/03/13,IJ00019777,264.43,ROYAL MAIL, 
East Lindsey District Council,http://statistics.data.gov.uk/id/local-authority/32UC,Corporate Accounting,Postages,14/03/13,IJ00019777,697.27,ROYAL MAIL, 
East Lindsey District Council,http://statistics.data.gov.uk/id/local-authority/32UC,Corporate Accounting,Postages,14/03/13,IJ00019777,270.67,ROYAL MAIL, 
East Lindsey District Council,http://statistics.data.gov.uk/id/local-authority/32UC,Corporate Accounting,Postages,14/03/13,IJ00019777,1547.62,ROYAL MAIL, 
East Lindsey District Council,http://statistics.data.gov.uk/id/local-authority/32UC,Corporate Accounting,Postages,14/03/13,IJ00019777,260.91,ROYAL MAIL, 
East Lindsey District Council,http://statistics.data.gov.uk/id/local-authority/32UC,Corporate Accounting,Postages,14/03/13,IJ00019777,49.80,ROYAL MAIL, 
East Lindsey District Council,http://statistics.data.gov.uk/id/local-authority/32UC,Corporate Accounting,Postages,14/03/13,IJ00019777,13.97,ROYAL MAIL, 
East Lindsey District Council,http://statistics.data.gov.uk/id/local-authority/32UC,Corporate Accounting,Postages,14/03/13,IJ00019777,58.04,ROYAL MAIL, 
East Lindsey District Council,http://statistics.data.gov.uk/id/local-authority/32UC,Development Control,Postages,14/03/13,IJ00019779,351.76,ROYAL MAIL, 
East Lindsey District Council,http://statistics.data.gov.uk/id/local-authority/32UC,Corporate Accounting,Postages,14/03/13,IJ00019779,611.07,ROYAL MAIL, 
East Lindsey District Council,http://statistics.data.gov.uk/id/local-authority/32UC,Corporate Accounting,Postages,14/03/13,IJ00019779,430.64,ROYAL MAIL, 
East Lindsey District Council,http://statistics.data.gov.uk/id/local-authority/32UC,Corporate Accounting,Postages,14/03/13,IJ00019779,968.53,ROYAL MAIL, 
East Lindsey District Council,http://statistics.data.gov.uk/id/local-authority/32UC,Corporate Accounting,Postages,14/03/13,IJ00019779,354.21,ROYAL MAIL, 
East Lindsey District Council,http://statistics.data.gov.uk/id/local-authority/32UC,Corporate Accounting,Postages,14/03/13,IJ00019779,44.58,ROYAL MAIL, 
East Lindsey District Council,http://statistics.data.gov.uk/id/local-authority/32UC,Corporate Accounting,Postages,14/03/13,IJ00019779,10.99,ROYAL MAIL, 
East Lindsey District Council,http://statistics.data.gov.uk/id/local-authority/32UC,Corporate Accounting,Postages,14/03/13,IJ00019779,335.87,ROYAL MAIL, 
East Lindsey District Council,http://statistics.data.gov.uk/id/local-authority/32UC,Corporate Accounting,Professional & Contractors Fees,14/03/13,IJ00019812,4393.22,THE RISK FACTOR LTD, 
East Lindsey District Council,http://statistics.data.gov.uk/id/local-authority/32UC,Capital WIP,Works to Buildings (Sub Contractors),14/03/13,IJ00019801,500.00,SEYMOUR & CASTLE LTD, 
East Lindsey District Council,http://statistics.data.gov.uk/id/local-authority/32UC,Collection Fund,Precept - Lincolnshire Police,20/03/13,IJ00019828,893833.20,LOCAL POLICE AUTHORITY FUND ACCOUNT, 
East Lindsey District Council,http://statistics.data.gov.uk/id/local-authority/32UC,Collection Fund,Precept- Lincolnshire County Council,20/03/13,IJ00019829,5110519.95,LINCOLNSHIRE COUNTY COUNCIL, 
East Lindsey District Council,http://statistics.data.gov.uk/id/local-authority/32UC,Improvement & Development Mngr,Clothing Uniforms And Laundry,21/03/13,IJ00019975,504.00,THE ARCO GROUP, 
East Lindsey District Council,http://statistics.data.gov.uk/id/local-authority/32UC,Waste Services Manager,Tyres,21/03/13,IJ00019915,577.68,B A BUSH & SON LIMITED, 
East Lindsey District Council,http://statistics.data.gov.uk/id/local-authority/32UC,Horncastle Pool Manager,Other agencies,21/03/13,IJ00019974,6334.21,COMPETITION LINE (UK) LTD, 
East Lindsey District Council,http://statistics.data.gov.uk/id/local-authority/32UC,Area Working,Professional & Contractors Fees,21/03/13,IJ00019963,671.80,SID DENNIS & SONS LTD, 
East Lindsey District Council,http://statistics.data.gov.uk/id/local-authority/32UC,Hsg Advice & Homelessness TL,Other Miscellaneous Expenses,21/03/13,IJ00020068,500.00,REDACTED PERSONAL INFORMATION,redacted
East Lindsey District Council,http://statistics.data.gov.uk/id/local-authority/32UC,Policy & Project Manager,Other Miscellaneous Expenses,21/03/13,IJ00020064,21.00,KENMOR BUILDING & CONSTRUCTION SERVICES, 
East Lindsey District Council,http://statistics.data.gov.uk/id/local-authority/32UC,Policy & Project Manager,Professional & Contractors Fees,21/03/13,IJ00020064,360.00,KENMOR BUILDING & CONSTRUCTION SERVICES, 
East Lindsey District Council,http://statistics.data.gov.uk/id/local-authority/32UC,Business Development Manager,Buildings Maintenance - Programmed,21/03/13,IJ00020064,2932.13,KENMOR BUILDING & CONSTRUCTION SERVICES, 
East Lindsey District Council,http://statistics.data.gov.uk/id/local-authority/32UC,Capital WIP,Works to Buildings (main Contractor),21/03/13,IJ00020064,202.62,KENMOR BUILDING & CONSTRUCTION SERVICES, 
East Lindsey District Council,http://statistics.data.gov.uk/id/local-authority/32UC,TL Property,Buildings Maintenance - Programmed,21/03/13,IJ00020064,461.64,KENMOR BUILDING & CONSTRUCTION SERVICES, 
East Lindsey District Council,http://statistics.data.gov.uk/id/local-authority/32UC,Democracy Manager,Grants and Contributions to Outside Bodies- No Service Recei,21/03/13,IJ00020004,550.00,MINTING & GAUTBY PARISH COUNCIL, 
East Lindsey District Council,http://statistics.data.gov.uk/id/local-authority/32UC,Theatre Manager,Performers and Entertainers Fees,21/03/13,IJ00020041,2009.72,ETM LIMITED, 
East Lindsey District Council,http://statistics.data.gov.uk/id/local-authority/32UC,Theatre Manager,Performers and Entertainers Fees,21/03/13,IJ00020041,-450.00,ETM LIMITED, 
East Lindsey District Council,http://statistics.data.gov.uk/id/local-authority/32UC,Public Conveniences,Professional & Contractors Fees,21/03/13,IJ00019945,4134.95,PHS GROUP PLC, 
East Lindsey District Council,http://statistics.data.gov.uk/id/local-authority/32UC,Waste Services Manager,Other agencies,21/03/13,IJ00019966,1002.12,GLASS RECYCLING (UK) LTD, 
East Lindsey District Council,http://statistics.data.gov.uk/id/local-authority/32UC,Chief Executive,Staff Training Expenses,21/03/13,IJ00019936,704.46,LINCOLNSHIRE COUNTY COUNCIL, 
East Lindsey District Council,http://statistics.data.gov.uk/id/local-authority/32UC,Area Working,Fuel & Oil,21/03/13,IJ00019909,700.00,WATSON PETROLEUM LTD, 
East Lindsey District Council,http://statistics.data.gov.uk/id/local-authority/32UC,Waste Services Manager,Fuel & Oil,21/03/13,IJ00019939,5256.58,WATSON PETROLEUM LTD, 
East Lindsey District Council,http://statistics.data.gov.uk/id/local-authority/32UC,Waste Services Manager,Fuel & Oil,21/03/13,IJ00020013,24753.02,WATSON PETROLEUM LTD, 
East Lindsey District Council,http://statistics.data.gov.uk/id/local-authority/32UC,Theatre Manager,Advertising - Events,27/03/13,IJ00020180,657.69,AZTEC ADHESIVES LIMITED, 
East Lindsey District Council,http://statistics.data.gov.uk/id/local-authority/32UC,Policy & Project Manager,Professional & Contractors Fees,27/03/13,IJ00020196,21.22,BIFFA WASTE SERVICES LTD, 
East Lindsey District Council,http://statistics.data.gov.uk/id/local-authority/32UC,Horncastle Pool Manager,Professional & Contractors Fees,27/03/13,IJ00020196,84.88,BIFFA WASTE SERVICES LTD, 
East Lindsey District Council,http://statistics.data.gov.uk/id/local-authority/32UC,TL Property,Professional & Contractors Fees,27/03/13,IJ00020196,84.88,BIFFA WASTE SERVICES LTD, 
East Lindsey District Council,http://statistics.data.gov.uk/id/local-authority/32UC,TL Property,Professional & Contractors Fees,27/03/13,IJ00020196,42.44,BIFFA WASTE SERVICES LTD, 
East Lindsey District Council,http://statistics.data.gov.uk/id/local-authority/32UC,TL Property,Professional & Contractors Fees,27/03/13,IJ00020196,153.15,BIFFA WASTE SERVICES LTD, 
East Lindsey District Council,http://statistics.data.gov.uk/id/local-authority/32UC,TL Property,Professional & Contractors Fees,27/03/13,IJ00020196,42.44,BIFFA WASTE SERVICES LTD, 
East Lindsey District Council,http://statistics.data.gov.uk/id/local-authority/32UC,Policy & Project Manager,Professional & Contractors Fees,27/03/13,IJ00020196,42.44,BIFFA WASTE SERVICES LTD, 
East Lindsey District Council,http://statistics.data.gov.uk/id/local-authority/32UC,Policy & Project Manager,Professional & Contractors Fees,27/03/13,IJ00020196,42.44,BIFFA WASTE SERVICES LTD, 
East Lindsey District Council,http://statistics.data.gov.uk/id/local-authority/32UC,Embassy Pool Manager,Professional & Contractors Fees,27/03/13,IJ00020196,159.15,BIFFA WASTE SERVICES LTD, 
East Lindsey District Council,http://statistics.data.gov.uk/id/local-authority/32UC,Theatre Manager,Professional & Contractors Fees,27/03/13,IJ00020196,21.22,BIFFA WASTE SERVICES LTD, 
East Lindsey District Council,http://statistics.data.gov.uk/id/local-authority/32UC,Theatre Manager,Professional & Contractors Fees,27/03/13,IJ00020196,29.00,BIFFA WASTE SERVICES LTD, 
East Lindsey District Council,http://statistics.data.gov.uk/id/local-authority/32UC,Sports Centre Manager,Professional & Contractors Fees,27/03/13,IJ00020196,42.44,BIFFA WASTE SERVICES LTD, 
East Lindsey District Council,http://statistics.data.gov.uk/id/local-authority/32UC,Meridian Facility Manager,Professional & Contractors Fees,27/03/13,IJ00020196,42.44,BIFFA WASTE SERVICES LTD, 
East Lindsey District Council,http://statistics.data.gov.uk/id/local-authority/32UC,Sports Centre Manager,Telephones,27/03/13,IJ00020186,770.50,BT PLC, 
East Lindsey District Council,http://statistics.data.gov.uk/id/local-authority/32UC,Policy & Project Manager,Telephones,27/03/13,IJ00020186,770.50,BT PLC, 
East Lindsey District Council,http://statistics.data.gov.uk/id/local-authority/32UC,Policy & Project Manager,Telephones,27/03/13,IJ00020186,770.50,BT PLC, 
East Lindsey District Council,http://statistics.data.gov.uk/id/local-authority/32UC,Waste Services Manager,Tyres,27/03/13,IJ00020096,770.24,B A BUSH & SON LIMITED, 
East Lindsey District Council,http://statistics.data.gov.uk/id/local-authority/32UC,Business Development Manager,Buildings Maintenance - Programmed,27/03/13,IJ00020233,1540.00,LINCS PUMPS & PIPELINES LTD, 
East Lindsey District Council,http://statistics.data.gov.uk/id/local-authority/32UC,Technical Services Team Leader,Buildings Maintenance - Responsive,27/03/13,IJ00020234,884.81,MOODYS GLASS, 
East Lindsey District Council,http://statistics.data.gov.uk/id/local-authority/32UC,Capital WIP,Grants and Contributions to Outside Bodies- No Service Recei,27/03/13,IJ00020252,5943.97,SIBJON BUILDERS, 
East Lindsey District Council,http://statistics.data.gov.uk/id/local-authority/32UC,Hsg Private Sector TL,Other Income,27/03/13,IJ00020252,-530.71,SIBJON BUILDERS, 
East Lindsey District Council,http://statistics.data.gov.uk/id/local-authority/32UC,Capital WIP,Grants and Contributions to Outside Bodies- No Service Recei,27/03/13,IJ00020253,11646.00,SIBJON BUILDERS, 
East Lindsey District Council,http://statistics.data.gov.uk/id/local-authority/32UC,Hsg Private Sector TL,Other Income,27/03/13,IJ00020253,-1039.83,SIBJON BUILDERS, 
East Lindsey District Council,http://statistics.data.gov.uk/id/local-authority/32UC,Enforcement Team Leader,Professional & Contractors Fees,27/03/13,IJ00020400,3925.00,WALKERS KENNELS, 
East Lindsey District Council,http://statistics.data.gov.uk/id/local-authority/32UC,Theatre Manager,Advertising - Events,27/03/13,IJ00020321,5276.41,F W CUPIT PRINTERS LIMITED, 
East Lindsey District Council,http://statistics.data.gov.uk/id/local-authority/32UC,TL Property,Gas,27/03/13,IJ00020169,1948.28,CALOR GAS LTD, 
East Lindsey District Council,http://statistics.data.gov.uk/id/local-authority/32UC,Enforcement Team Leader,Stationery,27/03/13,IJ00020184,887.00,PAPERWORK UK LTD, 
East Lindsey District Council,http://statistics.data.gov.uk/id/local-authority/32UC,TL IT - System Support,Computer Software Licence Costs,27/03/13,IJ00020114,24545.78,GGP SYSTEMS LTD, 
East Lindsey District Council,http://statistics.data.gov.uk/id/local-authority/32UC,Shared Legal Services,Lincolnshire Legal Services,27/03/13,IJ00020112,24606.32,LINCOLNSHIRE COUNTY COUNCIL, 
East Lindsey District Council,http://statistics.data.gov.uk/id/local-authority/32UC,Shared Legal Services,Lincolnshire Legal Services,27/03/13,IJ00020112,4190.00,LINCOLNSHIRE COUNTY COUNCIL, 
East Lindsey District Council,http://statistics.data.gov.uk/id/local-authority/32UC,Business Development Manager,Buildings Maintenance - Programmed,27/03/13,IJ00020148,5141.50,SEYMOUR & CASTLE LTD, 
East Lindsey District Council,http://statistics.data.gov.uk/id/local-authority/32UC,Meridian Facility Manager,Materials and Consumables,27/03/13,IJ00020150,1632.30,SEYMOUR & CASTLE LTD, 
East Lindsey District Council,http://statistics.data.gov.uk/id/local-authority/32UC,Horncastle Pool Manager,Buildings Maintenance - Programmed,27/03/13,IJ00020153,707.00,SEYMOUR & CASTLE LTD, 
East Lindsey District Council,http://statistics.data.gov.uk/id/local-authority/32UC,BALANCE  SHEET,Payroll-Unison,27/03/13,IJ00020324,1660.70,UNISON, 
East Lindsey District Council,http://statistics.data.gov.uk/id/local-authority/32UC,BALANCE  SHEET,Payroll-Net Pay,28/03/13,IJ00020454,753073.99,EAST LINDSEY DISTRICT COUNCIL, 
East Lindsey District Council,http://statistics.data.gov.uk/id/local-authority/32UC,Shared Legal Services,Lincolnshire Legal Services,28/03/13,IJ00020452,22561.02,LINCOLNSHIRE COUNTY COUNCIL, 
East Lindsey District Council,http://statistics.data.gov.uk/id/local-authority/32UC,Shared Legal Services,Lincolnshire Legal Services,28/03/13,IJ00020452,22625.00,LINCOLNSHIRE COUNTY COUNCIL, 
East Lindsey District Council,http://statistics.data.gov.uk/id/local-authority/32UC,Shared Legal Services,Lincolnshire Legal Services,28/03/13,IJ00020452,117.00,LINCOLNSHIRE COUNTY COUNCIL, 
East Lindsey District Council,http://statistics.data.gov.uk/id/local-authority/32UC,Shared Legal Services,Lincolnshire Legal Services,28/03/13,IJ00020452,100.00,LINCOLNSHIRE COUNTY COUNCIL, 
East Lindsey District Council,http://statistics.data.gov.uk/id/local-authority/32UC,Corporate Accounting,Internal Drainage Board Levies,28/03/13,IJ00020455,622409.00,LINDSEY MARSH DRAINAGE BOARD, 
